bitfinex/quotes_BTCUSD_20250618
["timestamp","ask_amount","ask_price","bid_price","bid_amount"]
[1750261817123,0.42841787,105070.0,105060.0,0.00357082]
[1750261817344,0.4189014,105070.0,105060.0,0.00357082]
[1750261817561,0.48073329,105070.0,105060.0,0.00357082]
[1750261817777,0.44933329,105070.0,105060.0,0.00357082]
[1750261817981,0.38840846,105070.0,105060.0,0.00357082]
[1750261818421,3.52156688,105070.0,105060.0,0.00357082]
[1750261820216,3.48956688,105070.0,105060.0,0.00357082]
[1750261820889,3.48004951,105070.0,105060.0,0.00357082]
[1750261821757,3.4895667,105070.0,105060.0,0.00357082]
[1750261821977,3.04173437,105070.0,105060.0,0.2650564]
[1750261822199,3.05125129,105070.0,105060.0,0.27457449]
[1750261822647,3.06076839,105070.0,105060.0,0.2650564]
[1750261822858,3.06076839,105070.0,105060.0,0.27457449]
[1750261823063,3.07028558,105070.0,105060.0,0.27457467]
[1750261823495,3.07028622,105070.0,105060.0,0.26505649]
[1750261823711,3.06076894,105070.0,105060.0,0.07468919]
[1750261823924,3.05125175,105070.0,105060.0,0.26505659]
[1750261824133,3.04173465,105070.0,105060.0,0.27457477]
[1750261824350,3.05125175,105070.0,105060.0,0.27457477]
[1750261824560,3.04173465,105070.0,105060.0,0.27457477]
[1750261824793,3.03221701,105080.0,105070.0,0.19034929]
[1750261825020,0.05716658,105090.0,105080.0,0.19984772]
[1750261825233,0.25716658,105090.0,105080.0,0.26364772]
[1750261825456,0.26668196,105090.0,105080.0,0.0638]
[1750261825671,0.27619743,105090.0,105080.0,0.25413117]
[1750261825886,0.2666826,105090.0,105080.0,0.0638]
[1750261826118,0.26668269,105090.0,105080.0,0.0638]
[1750261826554,0.23813665,105090.0,105080.0,0.26364772]
[1750261826764,0.24765185,105090.0,105080.0,0.27316409]
[1750261826979,0.25716714,105090.0,105080.0,0.26364772]
[1750261827194,0.24765185,105090.0,105080.0,0.28268055]
[1750261827464,0.25916714,105090.0,105080.0,0.27316418]
[1750261827676,0.25916714,105090.0,105080.0,0.26364772]
[1750261828324,0.202,105090.0,105080.0,0.34610744]
[1750261828541,0.202,105090.0,105080.0,0.35562336]
[1750261828753,0.002,105090.0,105080.0,0.35562336]
[1750261829717,0.002,105090.0,105080.0,0.45186512]
[1750261830586,0.02853961,105110.0,105100.0,0.26270951]
[1750261830800,0.02853961,105110.0,105100.0,0.0629]
[1750261830801,0.4188171,105110.0,105100.0,0.0629]
[1750261831012,0.21902705,105110.0,105090.0,0.45245787]
[1750261831434,0.21902705,105110.0,105090.0,0.4619727]
[1750261831645,0.22854007,105110.0,105100.0,0.19980969]
[1750261831858,0.22862958,105110.0,105100.0,0.19029495]
[1750261832279,0.23814333,105110.0,105090.0,0.44294222]
[1750261832492,0.23814324,105110.0,105090.0,0.53631927]
[1750261832707,0.24014324,105110.0,105090.0,0.53631927]
[1750261832920,0.24014324,105110.0,105090.0,0.52680444]
[1750261833132,0.24014324,105110.0,105090.0,0.53631927]
[1750261833341,0.24765708,105110.0,105090.0,0.51728952]
[1750261833553,0.23042181,105110.0,105090.0,0.52680462]
[1750261833850,0.01902795,105100.0,105090.0,0.44294304]
[1750261834111,0.00951393,105100.0,105090.0,0.44294304]
[1750261834362,0.00951393,105100.0,105090.0,0.45245814]
[1750261834613,0.01902804,105100.0,105090.0,0.45245824]
[1750261834861,0.01902804,105100.0,105090.0,0.45245769]
[1750261834862,0.00951393,105100.0,105090.0,0.45245769]
[1750261835324,0.03889082,105110.0,105090.0,0.54658638]
[1750261835325,0.03889082,105110.0,105090.0,0.54658583]
[1750261835326,0.23889082,105110.0,105090.0,0.54658583]
[1750261835577,0.23668183,105110.0,105090.0,0.53707109]
[1750261835829,0.22863031,105110.0,105090.0,0.53707109]
[1750261836076,0.00951393,105100.0,105090.0,0.53707109]
[1750261836327,0.22863031,105110.0,105090.0,0.54658601]
[1750261836576,0.22863031,105110.0,105090.0,0.54654601]
[1750261836857,0.24640929,105110.0,105090.0,0.5275158]
[1750261837111,0.00208951,105110.0,105100.0,0.29055283]
[1750261837393,0.00208951,105110.0,105100.0,0.46040842]
[1750261838429,8.951e-05,105110.0,105100.0,0.47494927]
[1750261838694,0.00208951,105110.0,105100.0,0.47494927]
[1750261839451,8.951e-05,105110.0,105100.0,0.47494927]
[1750261839717,8.951e-05,105110.0,105100.0,0.47694927]
[1750261840614,8.951e-05,105110.0,105100.0,0.48094927]
[1750261842438,8.951e-05,105110.0,105100.0,0.51870754]
[1750261844054,8.951e-05,105110.0,105100.0,0.48094927]
[1750261844533,0.53513129,105160.0,105140.0,0.19973359]
[1750261844534,0.4438657,105160.0,105140.0,0.19973359]
[1750261844766,0.10478123,105150.0,105140.0,0.22065808]
[1750261844982,0.09527137,105150.0,105140.0,0.23016902]
[1750261845202,0.10478123,105150.0,105140.0,0.23016902]
[1750261845459,0.10478123,105150.0,105130.0,0.37035788]
[1750261845460,0.33459637,105150.0,105130.0,0.37035862]
[1750261845676,0.14439191,105150.0,105130.0,0.3798701]
[1750261845895,0.00951049,105140.0,105130.0,0.38938213]
[1750261846114,0.01902071,105140.0,105130.0,0.37035862]
[1750261846332,0.05813908,105140.0,105130.0,0.38938159]
[1750261846543,0.0285312,105140.0,105130.0,0.45803136]
[1750261846780,0.03804196,105140.0,105130.0,0.27788866]
[1750261847001,0.0285312,105140.0,105130.0,0.45803191]
[1750261847215,0.0285312,105140.0,105130.0,0.44852033]
[1750261847441,0.03804178,105140.0,105130.0,0.45803191]
[1750261847666,0.03804178,105140.0,105130.0,0.44852033]
[1750261847885,0.04755254,105140.0,105130.0,0.43900866]
[1750261848141,0.03804178,105140.0,105130.0,0.44852033]
[1750261848592,0.04004178,105140.0,105130.0,0.45803191]
[1750261848811,0.04004178,105140.0,105130.0,0.27788866]
[1750261849044,0.0095113,105130.0,105110.0,0.22086039]
[1750261849292,0.01902649,105110.0,105100.0,0.13731383]
[1750261849534,0.00951411,105100.0,105090.0,0.0637]
[1750261849758,0.02854296,105100.0,105090.0,0.19982862]
[1750261850006,0.22835265,105100.0,105080.0,0.0637]
[1750261850239,0.01902993,105090.0,105080.0,0.19984772]
[1750261850514,0.00951483,105090.0,105080.0,0.27806703]
[1750261850743,0.41883854,105100.0,105080.0,0.31033785]
[1750261850972,0.41883854,105100.0,105080.0,0.13387385]
[1750261850973,0.4283537,105100.0,105080.0,0.13387385]
[1750261851196,3.32828649,105090.0,105080.0,0.00047082]
[1750261851419,3.37811411,105090.0,105080.0,0.00047082]
[1750261851637,3.41081411,105090.0,105080.0,0.00047082]
[1750261853265,3.41081411,105090.0,105080.0,0.00247082]
[1750261853705,3.43942411,105090.0,105080.0,0.00247082]
[1750261854062,3.42169649,105090.0,105080.0,0.00232405]
[1750261855096,3.58277649,105090.0,105080.0,0.00232405]
[1750261855711,3.55007649,105090.0,105080.0,0.00232405]
[1750261857054,3.58037649,105090.0,105080.0,0.00232405]
[1750261857495,3.58037649,105090.0,105080.0,1e-08]
[1750261859830,3.23208458,105070.0,105060.0,0.0001]
[1750261860045,3.28006276,105070.0,105060.0,0.19055691]
[1750261860297,3.222701,105070.0,105060.0,0.25055298]
[1750261860504,3.04173275,105080.0,105070.0,0.19986666]
[1750261860758,3.06076549,105080.0,105070.0,0.0315]
[1750261860977,3.0607654,105080.0,105070.0,0.04101746]
[1750261861200,3.022701,105080.0,105070.0,0.19034929]
[1750261861444,0.07606355,105090.0,105080.0,0.209364]
[1750261861687,0.29509413,105090.0,105080.0,0.26084772]
[1750261861916,0.22861,105090.0,105080.0,0.28939611]
[1750261862149,0.2,105090.0,105080.0,0.28939611]
[1750261862392,3.222701,105090.0,105080.0,0.28939611]
[1750261862622,3.022701,105090.0,105080.0,0.28939611]
[1750261863049,0.00951483,105090.0,105080.0,0.27988019]
[1750261863269,3.222701,105090.0,105080.0,0.29891212]
[1750261863489,0.00951501,105090.0,105080.0,0.27988019]
[1750261863717,0.2,105090.0,105080.0,0.28939629]
[1750261863927,3.022701,105090.0,105080.0,0.29891221]
[1750261864155,0.001,105090.0,105080.0,0.29891221]
[1750261864364,0.201,105090.0,105080.0,0.29891221]
[1750261864595,0.203,105090.0,105080.0,0.29891221]
[1750261865312,0.203,105090.0,105080.0,0.2989123]
[1750261865575,0.203,105090.0,105080.0,0.29891221]
[1750261866206,0.21251483,105090.0,105080.0,0.28939629]
[1750261866415,0.21251483,105090.0,105080.0,0.27036409]
[1750261866624,0.22202975,105090.0,105080.0,0.25133117]
[1750261866851,0.23154485,105090.0,105080.0,0.25133117]
[1750261867075,0.23154485,105090.0,105080.0,0.19984772]
[1750261867298,0.21251483,105090.0,105080.0,0.21888028]
[1750261867750,0.203,105090.0,105080.0,0.21888019]
[1750261867980,0.203,105090.0,105080.0,0.2911962]
[1750261868431,0.203,105090.0,105080.0,0.28168019]
[1750261868645,0.203,105090.0,105080.0,0.29119638]
[1750261868868,0.21251501,105090.0,105080.0,0.27216409]
[1750261869101,0.21251501,105090.0,105080.0,0.26264772]
[1750261869315,0.21251501,105090.0,105080.0,0.28168037]
[1750261869541,0.22203021,105090.0,105080.0,0.27216418]
[1750261869770,0.22203021,105090.0,105080.0,0.20936418]
[1750261869771,0.2315455,105090.0,105080.0,0.20936418]
[1750261870009,0.203,105090.0,105080.0,0.3368693]
[1750261870239,0.003,105090.0,105080.0,0.3368693]
[1750261870495,0.003,105090.0,105080.0,0.43311106]
[1750261870978,0.003,105090.0,105080.0,0.29279629]
[1750261871196,0.02203012,105090.0,105080.0,0.25473117]
[1750261871431,0.21885956,105090.0,105070.0,0.20938303]
[1750261871647,0.21885956,105090.0,105070.0,0.29281768]
[1750261871868,0.01903085,105090.0,105070.0,0.29281768]
[1750261872084,0.00951574,105080.0,105070.0,0.29281714]
[1750261872331,0.20951501,105090.0,105080.0,0.27316391]
[1750261872570,0.21903021,105090.0,105080.0,0.2826801]
[1750261872805,0.21903021,105090.0,105080.0,0.0309]
[1750261873042,0.22854568,105090.0,105080.0,0.22123117]
[1750261873267,0.21885874,105090.0,105080.0,0.0309]
[1750261873517,0.21885874,105090.0,105070.0,0.44578059]
[1750261873518,0.00951574,105080.0,105070.0,0.44578059]
[1750261873730,0.00951574,105080.0,105070.0,0.44378059]
[1750261873951,0.22837439,105090.0,105070.0,0.45329723]
[1750261874186,0.21903021,105090.0,105080.0,0.19984763]
[1750261874424,0.22854559,105090.0,105080.0,0.20936418]
[1750261874652,0.22854559,105090.0,105080.0,0.00951655]
[1750261874880,0.2475768,105090.0,105070.0,0.50476565]
[1750261875121,0.23806115,105090.0,105080.0,0.00951655]
[1750261875351,0.2475768,105090.0,105070.0,0.49724901]
[1750261875569,0.2475768,105090.0,105070.0,0.50476565]
[1750261875785,0.23806115,105090.0,105080.0,0.00951655]
[1750261876020,0.22854559,105090.0,105080.0,0.25148055]
[1750261876234,0.22854559,105090.0,105080.0,0.28398055]
[1750261876235,0.23806097,105090.0,105080.0,0.28398055]
[1750261876448,0.23806097,105090.0,105080.0,0.26494772]
[1750261876661,0.23806097,105090.0,105080.0,0.04201655]
[1750261876869,0.24757662,105090.0,105080.0,0.0325]
[1750261877084,0.41885947,105090.0,105080.0,0.0325]
[1750261877380,0.00951592,105080.0,105070.0,0.43336394]
[1750261877615,0.01903175,105080.0,105070.0,0.45239778]
[1750261877828,0.00951574,105080.0,105070.0,0.45239787]
[1750261878036,0.00951574,105080.0,105070.0,0.52694897]
[1750261878250,0.00951574,105080.0,105070.0,0.45239787]
[1750261878684,0.00951574,105080.0,105070.0,0.4639147]
[1750261878892,0.01903166,105080.0,105070.0,0.45439787]
[1750261879103,0.00951574,105080.0,105070.0,0.4639147]
[1750261879318,0.01903166,105080.0,105070.0,0.3048347]
[1750261879736,0.01903166,105080.0,105070.0,0.29531787]
[1750261879950,0.00951574,105080.0,105070.0,0.3048347]
[1750261881705,0.01903157,105080.0,105070.0,0.29531796]
[1750261881928,0.01903112,105090.0,105070.0,0.51450209]
[1750261882139,0.21903112,105090.0,105070.0,0.51320209]
[1750261882361,0.21903112,105090.0,105080.0,0.19984763]
[1750261882362,0.21903012,105090.0,105080.0,0.19984763]
[1750261882587,0.21903012,105090.0,105080.0,0.26254763]
[1750261882817,0.21903012,105090.0,105080.0,0.272064]
[1750261883027,0.2285455,105090.0,105080.0,0.25303117]
[1750261883273,0.2285455,105090.0,105080.0,0.0627]
[1750261883480,0.23806106,105090.0,105080.0,0.0627]
[1750261884217,0.23806106,105090.0,105080.0,0.0323]
[1750261884424,0.23806106,105090.0,105080.0,0.22263117]
[1750261884642,0.21903012,105090.0,105080.0,0.27206382]
[1750261884852,3.222701,105090.0,105080.0,0.35223315]
[1750261885086,3.022701,105090.0,105080.0,0.35223315]
[1750261885296,0.00951411,105100.0,105090.0,0.27204373]
[1750261885503,0.00951411,105100.0,105090.0,0.27204382]
[1750261885714,0.53228653,105110.0,105090.0,0.28155856]
[1750261885928,0.00951393,105100.0,105090.0,0.33486126]
[1750261886136,0.00951393,105100.0,105090.0,0.33486135]
[1750261886554,0.02102813,105100.0,105090.0,0.31583132]
[1750261886786,0.01051393,105100.0,105090.0,0.344377]
[1750261887003,0.201,105100.0,105090.0,0.344377]
[1750261887217,0.01942527,105100.0,105090.0,0.33486199]
[1750261887421,0.02954269,105100.0,105090.0,0.26252862]
[1750261887636,0.0295426,105100.0,105090.0,0.25301306]
[1750261887856,0.0295426,105100.0,105090.0,0.27204427]
[1750261888067,0.0295426,105100.0,105090.0,0.28155974]
[1750261888275,0.03905716,105100.0,105090.0,0.26252871]
[1750261888488,0.0295426,105100.0,105090.0,0.27204418]
[1750261888695,0.0315426,105100.0,105090.0,0.27204427]
[1750261889352,0.0315426,105100.0,105090.0,0.28155974]
[1750261889569,0.0315426,105100.0,105090.0,0.27204427]
[1750261889757,0.04105716,105100.0,105090.0,0.26252871]
[1750261889990,0.04105716,105100.0,105090.0,0.27204427]
[1750261890197,0.04105716,105100.0,105090.0,0.26252871]
[1750261890628,0.0315426,105100.0,105090.0,0.27204418]
[1750261890837,0.0315426,105100.0,105090.0,0.26252871]
[1750261891054,0.28783102,105100.0,105080.0,0.20936328]
[1750261891309,0.23135211,105100.0,105080.0,0.44501911]
[1750261891521,0.24086685,105100.0,105080.0,0.27446328]
[1750261891730,0.23135283,105100.0,105080.0,0.27446328]
[1750261892153,0.03905779,105100.0,105080.0,0.28397902]
[1750261892360,0.23135333,105100.0,105080.0,0.35186794]
[1750261892577,0.03154314,105100.0,105090.0,0.19982862]
[1750261892789,0.03154314,105100.0,105090.0,0.19982871]
[1750261892993,0.04005788,105100.0,105080.0,0.36138368]
[1750261893198,0.23035305,105100.0,105080.0,0.35186794]
[1750261893413,0.02202858,105100.0,105090.0,0.20934418]
[1750261893622,0.03905779,105100.0,105080.0,0.36138368]
[1750261893829,0.22935392,105100.0,105080.0,0.35186794]
[1750261894033,0.23135392,105100.0,105080.0,0.35186794]
[1750261894237,0.03054305,105100.0,105090.0,0.19982871]
[1750261894456,0.04957244,105100.0,105080.0,0.35186794]
[1750261894696,0.24086803,105100.0,105080.0,0.27446328]
[1750261894898,0.19982798,105090.0,105080.0,0.0651]
[1750261895120,0.00951592,105080.0,105070.0,0.27358376]
[1750261895330,0.00951592,105080.0,105070.0,0.4441005]
[1750261895537,0.20934391,105090.0,105070.0,0.4441005]
[1750261895749,0.2285465,105090.0,105080.0,0.00951655]
[1750261896167,0.21903085,105090.0,105080.0,0.00951655]
[1750261897092,0.2190303,105090.0,105080.0,0.19984772]
[1750261897305,0.20951501,105090.0,105080.0,0.3489752]
[1750261897522,0.21903021,105090.0,105080.0,0.33945892]
[1750261897729,0.22854568,105090.0,105080.0,0.26554772]
[1750261898183,0.23806124,105090.0,105080.0,0.07521655]
[1750261898368,0.23806115,105090.0,105080.0,0.07521655]
[1750261898621,0.21903021,105090.0,105080.0,0.27506418]
[1750261898838,0.20951492,105090.0,105080.0,0.34912507]
[1750261899063,0.0285454,105090.0,105080.0,0.0657]
[1750261899338,0.00951737,105070.0,105060.0,0.06478951]
[1750261899568,0.71870842,105070.0,105060.0,0.00018951]
[1750261899786,3.60799858,105070.0,105060.0,0.00018951]
[1750261900012,3.63661458,105070.0,105060.0,0.00018951]
[1750261900711,3.59856925,105070.0,105060.0,0.00018951]
[1750261902035,3.63656342,105070.0,105060.0,0.00018951]
[1750261902254,3.65110427,105070.0,105060.0,0.00018951]
[1750261902478,3.6226116,105070.0,105060.0,0.00018951]
[1750261902701,3.43718658,105060.0,105050.0,0.0001]
[1750261902921,3.53342834,105060.0,105050.0,0.00014702]
[1750261903572,3.56192324,105060.0,105050.0,0.00014702]
[1750261904497,3.56492324,105060.0,105050.0,0.00014702]
[1750261904709,3.53642834,105060.0,105050.0,0.00014702]
[1750261904927,3.60844324,105060.0,105050.0,0.00014702]
[1750261905147,3.28720562,105050.0,105040.0,0.0001]
[1750261905365,3.55898823,105050.0,105040.0,0.0001]
[1750261905581,3.58748313,105050.0,105040.0,0.0001]
[1750261905805,3.55898823,105050.0,105040.0,0.0001]
[1750261906021,3.61605054,105050.0,105040.0,0.0001]
[1750261906674,3.45002869,105050.0,105040.0,0.0001]
[1750261906891,3.22262465,105040.0,105030.0,0.0001]
[1750261907108,3.38136641,105040.0,105030.0,0.00024111]
[1750261907318,3.42005389,105040.0,105030.0,0.00024111]
[1750261908607,0.23314268,105030.0,105020.0,0.0001]
[1750261908823,3.54348544,105030.0,105020.0,0.0001]
[1750261909251,0.01904715,105000.0,104990.0,0.064]
[1750261909483,0.38004705,105000.0,104990.0,0.064]
[1750261909701,0.21904705,105000.0,104990.0,0.064]
[1750261909918,0.30472856,105000.0,104990.0,0.064]
[1750261910132,0.28568151,105000.0,104990.0,0.064]
[1750261910381,3.43319386,105000.0,104990.0,0.0001]
[1750261910596,3.22367052,105000.0,104990.0,0.0001]
[1750261910820,3.24271749,105000.0,104990.0,0.0061]
[1750261911250,3.2427174,105000.0,104990.0,0.19659433]
[1750261911465,3.36516253,105000.0,104990.0,0.19659433]
[1750261911714,3.36516253,105000.0,104990.0,0.22879433]
[1750261911924,3.37468615,105000.0,104990.0,0.25909433]
[1750261912345,3.36516253,105000.0,104990.0,0.25909433]
[1750261912988,3.37468606,105000.0,104990.0,0.25909433]
[1750261913204,3.37468615,105000.0,104990.0,0.25909433]
[1750261913511,3.36516253,105000.0,104990.0,0.25909433]
[1750261913941,0.16059966,105000.0,104990.0,0.28766738]
[1750261914173,0.13196866,105000.0,104990.0,0.28766738]
[1750261914403,0.13196866,105000.0,104990.0,0.38390914]
[1750261914619,0.20952036,105030.0,105020.0,0.25603991]
[1750261915059,0.2190409,105030.0,105020.0,0.25603991]
[1750261915271,0.23808243,105030.0,105020.0,0.25603991]
[1750261915488,0.23808225,105030.0,105020.0,0.25603991]
[1750261915914,0.24760315,105030.0,105020.0,0.0656]
[1750261916132,0.42850502,105030.0,105020.0,0.0656]
[1750261916377,0.01904253,105020.0,105010.0,0.25395805]
[1750261916624,0.06762133,105020.0,105010.0,0.26348086]
[1750261916893,0.05809997,105020.0,105010.0,0.26348086]
[1750261917123,0.06762133,105020.0,105010.0,0.27300358]
[1750261917333,0.0485788,105020.0,105010.0,0.28252611]
[1750261917543,0.05809997,105020.0,105010.0,0.27300358]
[1750261917751,0.07914296,105020.0,105010.0,0.25395805]
[1750261917988,0.21904452,105010.0,105000.0,0.22075985]
[1750261918264,0.26101362,105010.0,105000.0,0.25397619]
[1750261918468,0.26101362,105010.0,105000.0,0.0635]
[1750261918691,0.26101362,105010.0,104990.0,0.25408864]
[1750261918692,3.04174761,105000.0,104990.0,0.25408864]
[1750261918900,0.01904652,105000.0,104990.0,0.26361335]
[1750261919107,0.01904652,105000.0,104990.0,0.25408864]
[1750261919323,0.07714885,105000.0,104990.0,0.25408864]
[1750261919532,0.07714885,105000.0,104990.0,0.0636]
[1750261919741,0.27714884,105000.0,104990.0,0.0636]
[1750261919956,0.07714885,105000.0,104990.0,0.0666]
[1750261920169,0.07714885,105000.0,104990.0,0.25709433]
[1750261920589,0.07714885,105000.0,104990.0,0.24584312]
[1750261920590,3.222701,105000.0,104990.0,0.24584312]
[1750261920827,0.01904625,105000.0,104990.0,0.23831886]
[1750261921033,0.21904625,105000.0,104990.0,0.24784348]
[1750261921245,0.21904625,105000.0,104990.0,0.27814366]
[1750261921439,0.21904625,105000.0,104990.0,0.26861904]
[1750261921673,0.26680384,105010.0,105000.0,0.1999999]
[1750261921911,0.2,105010.0,105000.0,0.29207004]
[1750261922101,0.01904335,105020.0,105000.0,0.29207004]
[1750261922307,3.022701,105010.0,105000.0,0.29207004]
[1750261922773,0.27632457,105020.0,105010.0,0.25395805]
[1750261923021,0.27632457,105020.0,105010.0,0.0635]
[1750261923022,0.33538404,105020.0,105010.0,0.0635]
[1750261923341,0.27632448,105020.0,105010.0,0.26348095]
[1750261923546,0.49536774,105020.0,105010.0,0.25395805]
[1750261923757,0.49536774,105020.0,105010.0,0.26348095]
[1750261923942,0.48684602,105020.0,105010.0,0.26348086]
[1750261924173,0.21052136,105020.0,105010.0,0.26348086]
[1750261924397,0.22004281,105020.0,105010.0,0.28252621]
[1750261924829,0.201,105020.0,105010.0,0.30157118]
[1750261925032,0.002,105020.0,105010.0,0.30157063]
[1750261925238,0.202,105020.0,105010.0,0.30157063]
[1750261925446,0.002,105020.0,105010.0,0.30157063]
[1750261926306,3.41224548,105030.0,105020.0,0.0606]
[1750261926507,3.2218237,105030.0,105020.0,0.25103991]
[1750261926712,3.2218237,105030.0,105020.0,0.0606]
[1750261927115,3.23134469,105030.0,105020.0,0.0606]
[1750261927334,3.2218237,105030.0,105020.0,0.25103991]
[1750261927541,3.23234478,105030.0,105020.0,0.0606]
[1750261927948,3.41324611,105030.0,105020.0,0.0606]
[1750261928152,3.41424611,105030.0,105020.0,0.0606]
[1750261928974,0.19996167,105020.0,105010.0,0.0317]
[1750261929182,0.21904335,105020.0,105000.0,0.28224651]
[1750261929362,0.00952217,105010.0,105000.0,0.27272343]
[1750261929586,0.00952208,105010.0,105000.0,0.2631999]
[1750261929792,0.00952208,105010.0,105000.0,0.27272334]
[1750261929997,0.00952208,105010.0,105000.0,0.2822466]
[1750261930408,0.00952217,105010.0,105000.0,0.27272343]
[1750261930615,0.00952217,105010.0,105000.0,0.29177004]
[1750261931039,0.00952217,105010.0,105000.0,0.29377004]
[1750261931248,0.21900608,105020.0,105000.0,0.29676896]
[1750261931452,0.2885638,105020.0,105010.0,0.19045805]
[1750261931657,0.21904335,105020.0,105010.0,0.25455805]
[1750261932069,0.21904335,105020.0,105010.0,0.0736229]
[1750261932070,0.01904335,105020.0,105010.0,0.0736229]
[1750261932277,0.21904335,105020.0,105010.0,0.0736229]
[1750261932663,0.21904335,105020.0,105010.0,0.26408095]
[1750261932870,3.222701,105020.0,105010.0,0.28312629]
[1750261933073,3.022701,105020.0,105010.0,0.29264855]
[1750261933277,3.03222236,105020.0,105010.0,0.29264873]
[1750261933521,0.20952127,105020.0,105010.0,0.29364873]
[1750261933724,0.00952127,105020.0,105010.0,0.29464873]
[1750261933929,3.022701,105020.0,105010.0,0.29464809]
[1750261934132,3.222701,105030.0,105020.0,0.27458362]
[1750261934344,0.0285618,105030.0,105020.0,0.07462199]
[1750261934542,0.22850448,105030.0,105020.0,0.0651]
[1750261935060,0.48369388,105030.0,105020.0,0.0651]
[1750261935265,0.00952136,105020.0,105010.0,0.28612583]
[1750261935470,0.00952136,105020.0,105010.0,0.29564818]
[1750261935679,0.39423379,105030.0,105010.0,0.45464818]
[1750261935907,0.2047546,105030.0,105010.0,0.46417044]
[1750261936136,0.21904171,105030.0,105020.0,0.2308619]
[1750261936341,0.22004117,105030.0,105020.0,0.28230552]
[1750261936553,0.22956144,105030.0,105020.0,0.28230561]
[1750261936764,0.21052063,105030.0,105020.0,0.29182724]
[1750261936978,0.21052063,105030.0,105020.0,0.3013486]
[1750261936979,0.2,105030.0,105020.0,0.3013486]
[1750261937223,0.2,105030.0,105020.0,0.3244401]
[1750261937224,0.001,105030.0,105020.0,0.3244401]
[1750261937439,0.201,105030.0,105020.0,0.3244401]
[1750261937847,0.001,105030.0,105020.0,0.3244401]
[1750261938057,0.22004081,105030.0,105020.0,0.30134878]
[1750261938264,0.21052027,105030.0,105020.0,0.30134824]
[1750261938485,0.201,105030.0,105020.0,0.3013477]
[1750261938741,0.001,105030.0,105020.0,0.26326127]
[1750261938949,0.001,105030.0,105020.0,0.34163574]
[1750261939160,0.001,105030.0,105020.0,0.27318254]
[1750261939591,0.001,105030.0,105020.0,0.3704243]
[1750261939804,3.022701,105040.0,105030.0,0.27364661]
[1750261940027,3.022701,105040.0,105030.0,0.28316715]
[1750261940238,3.022701,105040.0,105030.0,0.2926876]
[1750261940445,0.0718022,105050.0,105040.0,0.27114337]
[1750261940650,0.0718022,105050.0,105040.0,0.27114347]
[1750261941103,0.04323479,105050.0,105040.0,0.28066338]
[1750261941312,0.04323479,105050.0,105040.0,0.26162365]
[1750261941522,0.06227234,105050.0,105040.0,0.26162374]
[1750261941733,0.01903917,105040.0,105030.0,0.0609]
[1750261941942,0.22855908,105040.0,105030.0,0.25132178]
[1750261942146,0.22003917,105040.0,105030.0,0.25132178]
[1750261942400,0.2,105040.0,105030.0,0.27036349]
[1750261942611,0.02955926,105040.0,105030.0,0.25132178]
[1750261942826,0.21898376,105030.0,105020.0,0.0605]
[1750261943030,3.24168476,105030.0,105020.0,0.0605]
[1750261943242,3.24168476,105030.0,105010.0,0.27000358]
[1750261943455,0.00952136,105020.0,105010.0,0.27952611]
[1750261943669,3.222701,105020.0,105010.0,0.29857081]
[1750261943908,0.21898383,105030.0,105010.0,0.28904791]
[1750261944115,0.23567954,105030.0,105020.0,0.001]
[1750261944538,0.22615864,105030.0,105020.0,0.001]
[1750261945179,0.22615864,105030.0,105010.0,0.27100312]
[1750261945391,0.22615864,105030.0,105010.0,0.27000312]
[1750261945601,0.01904308,105020.0,105010.0,0.27200321]
[1750261945820,0.02856435,105020.0,105010.0,0.28152584]
[1750261946032,0.02856426,105020.0,105010.0,0.27952584]
[1750261946251,0.06355827,105020.0,105010.0,0.0605]
[1750261946460,0.26355827,105020.0,105010.0,0.25295805]
[1750261946667,0.26355827,105020.0,105010.0,0.25195805]
[1750261946668,0.23808598,105020.0,105010.0,0.25195805]
[1750261946883,0.24760788,105020.0,105010.0,0.26048095]
[1750261947100,0.22856426,105020.0,105010.0,0.27000376]
[1750261947318,0.20952127,105020.0,105010.0,0.29104874]
[1750261947544,0.23808598,105020.0,105010.0,0.28152648]
[1750261947763,0.22856426,105020.0,105010.0,0.28152648]
[1750261947986,0.23808598,105020.0,105010.0,0.26248095]
[1750261948227,0.24760788,105020.0,105010.0,0.26248095]
[1750261948434,0.21904263,105020.0,105010.0,0.28452629]
[1750261948651,0.22856408,105020.0,105010.0,0.28452629]
[1750261949137,0.01904263,105020.0,105010.0,0.28452629]
[1750261949345,0.02856426,105020.0,105010.0,0.28452648]
[1750261949563,0.03808607,105020.0,105010.0,0.27500376]
[1750261949772,0.02856426,105020.0,105010.0,0.27500376]
[1750261949985,0.02856426,105020.0,105010.0,0.28452648]
[1750261950200,0.01904263,105020.0,105010.0,0.28452648]
[1750261950412,0.00952127,105020.0,105010.0,0.30357145]
[1750261950623,0.01904263,105020.0,105010.0,0.29404855]
[1750261950843,0.17996081,105030.0,105020.0,0.27118353]
[1750261951057,0.28572329,105030.0,105020.0,0.25213991]
[1750261951274,0.2952441,105030.0,105020.0,0.25213991]
[1750261951493,0.30476509,105030.0,105020.0,0.2616619]
[1750261951711,0.21904063,105030.0,105020.0,0.32630236]
[1750261951925,0.2,105030.0,105020.0,0.34534517]
[1750261952142,0.2,105030.0,105020.0,0.34634517]
[1750261952143,3.022701,105030.0,105020.0,0.34634517]
[1750261952352,3.022701,105030.0,105020.0,0.34734517]
[1750261952563,0.00952027,105030.0,105020.0,0.28270525]
[1750261952766,0.21904072,105030.0,105020.0,0.29222679]
[1750261952977,3.222701,105030.0,105020.0,0.30174815]
[1750261953192,3.022701,105030.0,105020.0,0.30174815]
[1750261953403,3.03222127,105030.0,105020.0,0.30174815]
[1750261953612,0.20952036,105030.0,105020.0,0.29222679]
[1750261956767,3.022701,105030.0,105020.0,0.30174797]
[1750261959439,3.022701,105030.0,105020.0,0.27318362]
[1750261959647,0.00952027,105030.0,105020.0,0.28270525]
[1750261959858,3.222701,105030.0,105020.0,0.29222661]
[1750261960069,3.022701,105030.0,105020.0,0.29222661]
[1750261960706,0.17995917,105040.0,105030.0,0.27266376]
[1750261961128,0.18947908,105040.0,105030.0,0.27266385]
[1750261961769,0.38940273,105040.0,105030.0,0.0632]
[1750261961981,0.39892291,105040.0,105030.0,0.0632]
[1750261962186,0.19999908,105040.0,105030.0,0.07272108]
[1750261962393,0.19047908,105040.0,105030.0,0.26314286]
[1750261962610,0.19147908,105040.0,105030.0,0.27266385]
[1750261962831,0.17243945,105040.0,105030.0,0.28218475]
[1750261963025,0.18195917,105040.0,105030.0,0.28218475]
[1750261963219,0.18195917,105040.0,105030.0,0.27266385]
[1750261963428,0.19147908,105040.0,105030.0,0.26314286]
[1750261964069,0.202,105040.0,105030.0,0.33801542]
[1750261964287,0.002,105040.0,105030.0,0.33801542]
[1750261965134,0.001,105040.0,105030.0,0.33801542]
[1750261965347,0.05275352,105050.0,105040.0,0.26262365]
[1750261965557,0.26227234,105050.0,105040.0,0.26262365]
[1750261965760,0.26227243,105050.0,105040.0,0.26262365]